bitfinex/quotes_SOLUSD_20250917
["timestamp","ask_amount","ask_price","bid_price","bid_amount"]
[1758148020934,0.05726387,244.17,244.16,38.29886236]
[1758148021443,0.05726387,244.17,244.16,83.29457752]
[1758148021644,0.05726387,244.17,244.16,97.17449467]
[1758148022437,0.05726387,244.17,244.16,52.17877951]
[1758148022625,0.05726387,244.17,244.16,97.13449467]
[1758148023035,0.05726387,244.17,244.16,97.81449467]
[1758148023328,0.11726387,244.17,244.16,90.71877951]
[1758148023640,0.11726387,244.17,244.16,97.81449467]
[1758148025425,0.11726387,244.17,244.16,97.13449467]
[1758148025630,0.78726387,244.17,244.16,12.29886236]
[1758148025825,7.20297903,244.17,244.16,50.67886236]
[1758148026128,7.20297903,244.17,244.16,50.65886236]
[1758148026342,21.53725432,244.17,244.06,0.03]
[1758148026539,6.41571516,244.08,244.07,38.36]
[1758148026847,6.41571516,244.11,244.07,38.36]
[1758148027030,0.58,244.14,244.07,48.87286921]
[1758148027233,6.41571516,244.16,244.07,43.54687257]
[1758148027423,0.58,244.15,244.07,75.96258773]
[1758148027632,6.41571516,244.14,244.07,74.87286921]
[1758148027965,2.65962457,244.12,244.07,26.0]
[1758148028137,2.65962457,244.12,244.06,0.03]
[1758148028138,2.65962457,244.09,244.06,0.03]
[1758148028446,0.58,244.11,244.08,48.02]
[1758148028633,0.58,244.1,244.08,9.7]
[1758148028827,0.58,244.09,244.08,9.7]
[1758148029424,3.23962457,244.09,244.08,9.7]
[1758148029622,3.23962457,244.09,244.06,0.03]
[1758148029844,2.65962457,244.07,244.06,0.03]
[1758148030262,3.23962457,244.07,244.06,0.03]
[1758148030547,0.58,244.07,244.06,0.03]
[1758148030854,3.23962457,244.07,244.06,0.03]
[1758148031237,7.3368098,244.07,244.06,0.03]
[1758148031744,11.09564603,244.07,244.06,0.03]
[1758148033127,4.67718523,244.07,244.06,0.03]
[1758148033322,11.09564603,244.07,244.06,0.03]
[1758148034150,4.67718523,244.07,244.06,0.03]
[1758148034450,11.09564603,244.07,244.06,0.03]
[1758148034655,6.4184608,244.1,244.06,0.03]
[1758148035129,0.58,244.09,244.06,0.03]
[1758148035329,6.9984608,244.09,244.06,0.03]
[1758148036227,0.58,244.08,244.06,0.03]
[1758148036551,0.11726387,244.17,244.07,0.68]
[1758148036552,0.58,244.15,244.07,0.68]
[1758148036748,6.4184608,244.12,244.07,0.68]
[1758148036941,6.9984608,244.12,244.06,0.03]
[1758148037927,14.33486237,244.16,244.06,0.03]
[1758148038131,6.4184608,244.14,244.07,6.4184608]
[1758148038338,4.09567496,244.16,244.07,7.0984608]
[1758148038639,6.4184608,244.13,244.08,9.7]
[1758148038834,6.4184608,244.14,244.08,10.38]
[1758148039047,4.09567496,244.16,244.08,10.38]
[1758148039349,6.4184608,244.15,244.09,38.52]
[1758148039547,4.79277992,244.17,244.09,38.52]
[1758148039727,6.4184608,244.14,244.1,4.09668168]
[1758148039923,6.4184608,244.15,244.1,4.77668168]
[1758148040137,0.11726387,244.17,244.12,6.4184608]
[1758148040350,0.11726387,244.17,244.11,0.68]
[1758148040351,0.11726387,244.17,244.15,6.4184608]
[1758148040552,0.11726387,244.17,244.16,44.8984608]
[1758148041655,0.11726387,244.17,244.16,7.0984608]
[1758148041830,0.11726387,244.17,244.16,62.54972977]
[1758148042537,0.11726387,244.17,244.16,63.2436204]
[1758148042972,0.11726387,244.17,244.16,56.13126897]
[1758148043150,0.11726387,244.17,244.16,62.54972977]
[1758148043455,0.11726387,244.17,244.16,62.48972977]
[1758148043836,0.11726387,244.17,244.16,18.37126897]
[1758148044038,0.11726387,244.17,244.16,4.77567496]
[1758148044236,0.11726387,244.17,244.16,42.43567496]
[1758148044441,0.11726387,244.17,244.16,4.09567496]
[1758148044640,0.11726387,244.17,244.11,6.4184608]
[1758148044843,6.53572467,244.17,244.12,37.64]
[1758148045053,0.11726387,244.17,244.12,37.64]
[1758148045254,6.53572467,244.17,244.12,37.64]
[1758148045460,6.53572467,244.17,244.12,38.32]
[1758148045953,6.53572467,244.17,244.12,4.77622961]
[1758148046141,0.11726387,244.17,244.13,38.26]
[1758148047157,0.11726387,244.17,244.13,37.58]
[1758148047459,10.63125256,244.17,244.13,37.58]
[1758148047667,10.63125256,244.17,244.14,37.52]
[1758148047831,0.58,244.16,244.15,37.52]
[1758148048254,0.58,244.16,244.13,37.5]
[1758148048772,10.63129633,244.17,244.13,37.5]
[1758148048946,0.11726387,244.17,244.12,37.48]
[1758148049651,4.212812,244.17,244.1,11.19513185]
[1758148049851,4.212812,244.17,244.11,41.5365083]
[1758148050150,0.11726387,244.17,244.11,41.5365083]
[1758148050355,6.53572467,244.17,244.11,41.5365083]
[1758148050542,0.11726387,244.17,244.11,41.5365083]
[1758148050964,6.53572467,244.17,244.08,35.7]
[1758148051136,6.4184608,244.12,244.08,37.38]
[1758148051556,6.4184608,244.12,244.07,37.38]
[1758148051858,11.09493295,244.12,244.06,0.03]
[1758148052234,0.58,244.15,244.07,0.68]
[1758148052450,6.4184608,244.14,244.07,0.68]
[1758148052856,6.4184608,244.14,244.09,9.7]
[1758148053042,0.11726387,244.17,244.1,7.1284608]
[1758148053242,4.21280626,244.17,244.1,0.71]
[1758148053445,6.4184608,244.16,244.1,0.71]
[1758148053639,6.4184608,244.16,244.09,47.04]
[1758148053840,4.43237643,244.15,244.09,9.7]
[1758148054058,0.11726387,244.17,244.09,10.41]
[1758148054263,4.43237643,244.16,244.1,41.39663858]
[1758148054467,0.11726387,244.17,244.1,41.39663858]
[1758148054647,0.11726387,244.17,244.12,4.43237643]
[1758148054845,0.11726387,244.17,244.11,0.71]
[1758148054846,0.11726387,244.17,244.11,5.14237643]
[1758148055163,4.43237643,244.15,244.11,37.26]
[1758148055747,5.01237643,244.15,244.1,37.24]
[1758148056166,4.43237643,244.13,244.09,9.7]
[1758148056473,0.58,244.12,244.09,9.7]
[1758148056843,4.43237643,244.1,244.09,9.7]
[1758148057041,4.43237643,244.1,244.06,0.03]
[1758148058270,4.09684952,244.09,244.06,0.03]
[1758148058579,4.43237643,244.1,244.06,0.03]
[1758148058874,4.09665047,244.11,244.06,0.03]
[1758148059065,8.5290269,244.11,244.06,0.03]
[1758148059646,0.58,244.13,244.06,0.74]
[1758148059846,4.43237643,244.11,244.06,0.74]
[1758148060350,4.09661159,244.11,244.06,0.74]
[1758148060568,8.52898802,244.11,244.06,0.74]
[1758148060771,9.10898802,244.11,244.06,0.03]
[1758148061270,4.43237643,244.07,244.06,0.03]
[1758148061779,5.01237643,244.07,244.06,0.03]
[1758148062278,9.10956166,244.07,244.06,0.03]
[1758148062652,5.01237643,244.07,244.06,0.03]
[1758148062975,9.10956166,244.07,244.06,0.03]
[1758148063678,5.01237643,244.07,244.06,0.03]
[1758148064588,9.10956166,244.07,244.06,0.03]
[1758148064876,5.01237643,244.07,244.06,0.03]
[1758148065053,0.58,244.1,244.06,0.03]
[1758148065255,4.43237643,244.07,244.06,0.03]
[1758148065674,0.58,244.09,244.06,0.03]
[1758148065857,4.43237643,244.14,244.08,4.43237643]
[1758148066061,4.43237643,244.14,244.09,0.71]
[1758148066357,0.06,244.16,244.09,0.71]
[1758148066358,4.43237643,244.13,244.09,0.71]
[1758148066579,4.43237643,244.12,244.09,0.71]
[1758148066991,4.43237643,244.12,244.09,4.80676894]
[1758148067273,4.43237643,244.13,244.09,4.80676894]
[1758148067469,4.43237643,244.13,244.09,4.09676894]
[1758148067853,4.43237643,244.12,244.09,4.09676894]
[1758148068383,4.43237643,244.12,244.11,8.7]
[1758148069379,0.06,244.16,244.11,12.79645733]
[1758148069561,4.43237643,244.15,244.11,12.79645733]
[1758148069758,4.43237643,244.14,244.11,12.79645733]
[1758148069972,0.06,244.16,244.11,12.79645733]
[1758148070151,4.43237643,244.14,244.11,8.7]
[1758148070754,4.43237643,244.13,244.11,8.7]
[1758148071171,0.64,244.16,244.11,12.79650871]
[1758148071368,0.06,244.16,244.11,12.79650871]
[1758148071580,4.49237643,244.16,244.11,13.50650871]
[1758148071776,4.49237643,244.16,244.11,12.79650871]
[1758148072079,4.43237643,244.15,244.11,8.7]
[1758148072776,4.43237643,244.15,244.05,0.71]
[1758148072777,4.43237643,244.13,244.05,0.71]
[1758148072951,4.43237643,244.1,244.05,0.71]
[1758148073156,4.43237643,244.1,244.06,4.12721748]
[1758148074162,4.09617826,244.13,244.06,0.74]
[1758148074480,4.43237643,244.12,244.08,9.7]
[1758148074965,4.09584271,244.15,244.08,9.7]
[1758148075277,0.06,244.16,244.1,4.43237643]
[1758148075488,0.06,244.16,244.1,40.93237643]
[1758148075661,0.06,244.16,244.11,5.14237643]
[1758148076182,0.06,244.16,244.13,4.09617826]
[1758148076472,4.49237643,244.16,244.13,4.09617826]
[1758148076680,0.06,244.16,244.11,4.09639367]
[1758148076885,0.06,244.16,244.12,0.71]
[1758148077074,4.49237643,244.16,244.09,4.09671743]
[1758148077269,4.43237643,244.15,244.09,41.22671743]
[1758148077475,4.49237643,244.16,244.09,55.90121766]
[1758148077684,0.06,244.16,244.1,5.09237643]
[1758148078196,0.06,244.16,244.11,4.09651386]
[1758148078373,0.06,244.16,244.11,4.75651386]
[1758148078574,0.06,244.16,244.12,0.66]
[1758148079497,0.06,244.16,244.14,9.7]
[1758148080800,0.06,244.16,244.15,0.66]
[1758148081663,0.06,244.16,244.15,4.75584271]
[1758148082488,0.06,244.19,244.15,33.02341994]
[1758148082694,22.53081014,244.25,244.19,30.43237643]
[1758148082874,22.53081014,244.25,244.2,36.86]
[1758148083076,22.53081014,244.25,244.24,4.43237643]
[1758148083295,22.53081014,244.25,244.24,41.29237643]
[1758148083671,22.53081014,244.25,244.24,45.38670987]
[1758148083897,1e-08,244.29,244.28,39.59559401]
[1758148084086,1e-08,244.29,244.24,14.33016704]
[1758148084293,1e-08,244.29,244.27,4.43237643]
[1758148084908,1e-08,244.29,244.24,14.33016704]
[1758148085074,1e-08,244.29,244.28,4.43237643]
[1758148085788,1e-08,244.29,244.24,26.0]
[1758148085992,0.67000001,244.29,244.26,4.43237643]
[1758148086177,0.67000001,244.29,244.2,12.09471459]
[1758148086178,1e-08,244.29,244.18,4.43237643]
[1758148086504,1e-08,244.29,244.26,4.43237643]
[1758148087004,0.67,244.28,244.18,4.09529289]
[1758148087185,0.67,244.28,244.18,4.43237643]
[1758148087380,0.67,244.28,244.19,26.0]
[1758148087580,1e-08,244.29,244.25,4.43237643]
[1758148088491,1e-08,244.29,244.24,4.09426325]
[1758148090202,0.67000001,244.29,244.21,4.43237643]
[1758148090799,0.67000001,244.29,244.2,30.09494591]
[1758148091006,4.093663,244.28,244.2,30.09494591]
[1758148091889,4.093663,244.28,244.2,26.0]
[1758148092207,5.10237643,244.27,244.16,36.04]
[1758148092378,4.43237643,244.25,244.16,36.04]
[1758148093013,4.43237643,244.25,244.16,40.13561682]
[1758148093305,4.43237643,244.25,244.13,0.03]
[1758148093306,4.43237643,244.17,244.13,0.03]
[1758148093506,4.43237643,244.15,244.13,0.03]
[1758148093705,0.67,244.19,244.13,0.03]
[1758148093891,4.43237643,244.16,244.13,0.03]
[1758148094401,35.76,244.24,244.13,26.03]
[1758148094402,0.67,244.24,244.13,26.03]
[1758148094609,4.43237643,244.24,244.14,4.43237643]
[1758148094806,4.09429394,244.25,244.14,4.43237643]
[1758148095104,8.52622977,244.27,244.17,4.09550722]
[1758148095313,4.43237643,244.27,244.18,4.43237643]
[1758148095675,8.52624272,244.27,244.17,18.76665172]
[1758148095907,4.43237643,244.25,244.17,4.09550722]
[1758148097186,5.10237643,244.26,244.17,4.09550722]
[1758148097403,4.43237643,244.24,244.17,4.09550722]
[1758148097699,4.43237643,244.24,244.13,26.03]
[1758148097700,4.43237643,244.18,244.13,0.03]
[1758148097904,0.67,244.23,244.13,0.03]
[1758148097905,4.43237643,244.16,244.13,0.03]
[1758148098110,5.10237643,244.16,244.13,0.03]
[1758148099803,9.19809209,244.16,244.13,0.03]
[1758148100213,5.10237643,244.16,244.13,0.03]
[1758148100424,20.46999099,244.26,244.13,0.03]
[1758148100425,0.06000001,244.29,244.15,18.02797044]
[1758148100711,0.06000001,244.29,244.2,4.43237643]
[1758148101021,0.06000001,244.29,244.27,30.43237643]
[1758148101192,0.06000001,244.29,244.28,4.093663]
[1758148101515,0.06000001,244.29,244.27,4.43237643]
[1758148101702,0.06000001,244.29,244.27,8.52617447]
[1758148101913,0.73000001,244.29,244.22,39.5945816]
[1758148102086,0.73000001,244.29,244.27,4.43237643]
[1758148102793,0.06000001,244.29,244.27,4.43237643]
[1758148103187,4.15362346,244.29,244.27,4.43237643]
[1758148103385,4.82362346,244.29,244.27,4.43237643]
[1758148103584,0.73000001,244.29,244.27,4.43237643]
[1758148103780,0.73000001,244.29,244.21,35.48]
[1758148104002,0.67,244.28,244.26,4.43237643]
[1758148104209,0.06000001,244.29,244.26,4.43237643]
[1758148104509,0.06000001,244.29,244.28,4.43237643]
[1758148105211,0.06000001,244.29,244.28,8.52603943]
[1758148105387,0.06000001,244.29,244.28,4.43237643]
[1758148105889,0.06000001,244.29,244.25,4.09414574]
[1758148106205,0.73000001,244.29,244.28,4.43237643]
[1758148106406,0.06000001,244.29,244.28,4.43237643]
[1758148106788,0.73000001,244.29,244.28,4.43237643]
[1758148106987,0.73000001,244.29,244.28,13.13237643]
[1758148107589,0.73000001,244.29,244.28,8.7]
[1758148109894,4.093663,244.28,244.21,4.43237643]
[1758148110106,0.67,244.27,244.21,4.43237643]
[1758148110794,0.67,244.26,244.21,4.43237643]
[1758148110986,0.67,244.25,244.21,4.43237643]
[1758148111192,0.67,244.24,244.19,39.33515266]
[1758148111404,0.67,244.23,244.18,0.03]
[1758148111607,4.43237643,244.16,244.11,0.03]
[1758148111810,4.43237643,244.13,244.11,0.03]
[1758148112191,0.67,244.12,244.11,0.03]
[1758148113508,9.19872248,244.12,244.11,0.03]
[1758148115930,11.18412709,244.12,244.11,0.03]
[1758148116712,10.23799445,244.19,244.11,0.03]
[1758148116909,6.41778104,244.15,244.11,0.03]
[1758148117426,11.21379152,244.14,244.11,0.03]
[1758148117622,6.41778104,244.12,244.11,0.03]
[1758148118118,7.11778104,244.12,244.11,0.03]
[1758148119124,0.7,244.12,244.11,0.03]
[1758148119824,10.2394874,244.16,244.11,0.03]
[1758148119825,0.7,244.16,244.11,0.03]
[1758148120025,6.41778104,244.15,244.11,0.03]
[1758148120232,0.7,244.15,244.11,0.03]
[1758148120536,0.7,244.14,244.11,0.03]
[1758148120818,0.7,244.14,244.11,6.44778104]
[1758148122813,0.7,244.22,244.13,6.41778104]
[1758148123017,0.7,244.22,244.19,6.41778104]
[1758148123319,0.7,244.22,244.12,0.09]
[1758148123320,0.7,244.21,244.17,6.41778104]
[1758148123715,6.41778104,244.24,244.13,9.7]
[1758148123716,0.7,244.24,244.13,9.7]
[1758148123915,0.7,244.24,244.19,6.41778104]
[1758148124229,4.09421779,244.25,244.14,4.18601048]
[1758148124523,0.7,244.23,244.18,6.41778104]
[1758148124714,0.7,244.23,244.19,6.41778104]
[1758148125022,0.7,244.22,244.17,6.41778104]
[1758148125325,0.7,244.21,244.16,6.41778104]
[1758148125524,0.7,244.2,244.16,6.41778104]
[1758148126618,0.7,244.24,244.19,6.41778104]
[1758148126819,35.5,244.27,244.21,6.41778104]
[1758148127130,4.79396381,244.27,244.21,6.41778104]
[1758148128333,7.11778104,244.26,244.19,6.41778104]
[1758148129125,4.09416581,244.25,244.21,9.7]
[1758148129332,4.79416581,244.25,244.21,9.7]
[1758148129719,4.09416581,244.25,244.21,9.7]
[1758148129920,0.7,244.24,244.21,9.7]
[1758148130320,0.7,244.23,244.21,9.7]
[1758148130522,4.09416581,244.25,244.21,9.7]
[1758148130523,4.79416581,244.25,244.21,9.7]
[1758148130826,0.7,244.24,244.21,9.7]
[1758148131028,4.09450108,244.23,244.21,9.7]
[1758148131229,7.11778104,244.22,244.13,4.12607217]
[1758148131435,41.85778104,244.21,244.14,6.41778104]
[1758148131933,35.44,244.21,244.14,6.41778104]
[1758148132114,35.44,244.21,244.15,6.41778104]
[1758148132936,35.44,244.21,244.16,6.41778104]
[1758148133120,35.42,244.2,244.16,6.41778104]
[1758148133322,0.7,244.19,244.16,6.41778104]
[1758148133520,0.7,244.19,244.15,6.41778104]
[1758148133723,26.0,244.17,244.13,0.03]
[1758148133937,6.41778104,244.14,244.13,0.03]
[1758148134331,7.11778104,244.14,244.13,0.03]
[1758148135028,11.21379152,244.14,244.13,0.03]
[1758148135233,17.9158957,244.14,244.13,0.03]
[1758148137817,28.15592191,244.14,244.11,0.03]
[1758148138048,12.83556208,244.12,244.11,0.03]
[1758148138238,47.51556208,244.12,244.11,0.03]
[1758148138422,48.16556208,244.12,244.11,0.03]
[1758148139128,52.26190813,244.12,244.11,0.03]
[1758148140324,62.50277327,244.12,244.09,0.03]
[1758148140556,6.41778104,244.1,244.09,0.03]
[1758148140839,18.77668722,244.1,244.09,0.03]
[1758148141038,7.06778104,244.1,244.09,0.03]
[1758148141524,11.16446272,244.1,244.09,0.03]
[1758148141727,6.41778104,244.1,244.09,0.03]
[1758148141942,41.09778104,244.1,244.09,0.03]
[1758148142848,45.19446272,244.1,244.09,0.03]
[1758148143713,10.51446272,244.1,244.09,0.03]
[1758148143928,45.19446272,244.1,244.09,0.03]
[1758148144637,57.76857373,244.1,244.09,0.03]
[1758148145436,58.46857373,244.1,244.09,0.03]
[1758148146740,52.05079269,244.1,244.09,0.03]
[1758148146939,1.91722464,244.09,244.06,0.03]
[1758148147140,6.41778104,244.07,244.06,0.03]
[1758148148430,10.51496627,244.07,244.06,0.03]
[1758148152148,11.21496627,244.07,244.06,0.03]
[1758148152540,10.51496627,244.07,244.06,0.03]
[1758148153463,6.41778104,244.07,244.06,0.03]
[1758148154753,26.0,244.05,244.03,1.4498477]
[1758148154934,42.06210418,244.04,244.01,0.03]
[1758148155133,6.41778104,244.02,244.01,0.03]
[1758148155450,10.51580579,244.02,244.01,0.03]
[1758148155648,11.21580579,244.02,244.01,0.03]
[1758148156446,0.7,244.07,244.01,0.03]
[1758148156638,6.41778104,244.05,244.01,0.74]
[1758148156949,6.41778104,244.05,244.01,0.03]
[1758148157732,10.51538219,244.05,244.01,0.03]
[1758148158449,6.41778104,244.03,244.01,0.03]
[1758148158764,34.66,244.02,244.01,0.03]
[1758148159550,38.75802475,244.02,244.01,0.03]
[1758148161230,4.79802475,244.02,244.01,0.03]
[1758148161454,39.45802475,244.02,244.01,0.03]
[1758148162850,38.75802475,244.02,244.01,0.03]
[1758148163438,4.09802475,244.02,244.01,0.03]
[1758148163650,1.91722464,244.07,244.01,26.74]
[1758148163964,1.91722464,244.07,244.03,6.41778104]
[1758148164166,1.91722464,244.07,244.04,0.71]
[1758148164651,1.91722464,244.07,244.05,0.71]
[1758148164959,1.91722464,244.07,244.06,4.8073531]
[1758148165469,1.19722464,244.07,244.06,4.8073531]
[1758148166266,0.06,244.2,244.09,26.0]
[1758148166460,0.06,244.2,244.19,6.41778104]
[1758148168854,4.15501607,244.2,244.18,6.41778104]
[1758148170059,4.15501607,244.2,244.12,0.15]
[1758148170060,4.15501607,244.2,244.17,6.41778104]
[1758148170641,4.79519342,244.19,244.17,6.41778104]
[1758148171242,0.06,244.2,244.17,6.41778104]
[1758148171465,4.15501153,244.2,244.17,6.41778104]
[1758148171645,4.85501153,244.2,244.17,6.41778104]
[1758148173550,0.06,244.2,244.09,26.0]
[1758148173748,0.06,244.2,244.19,6.41778104]
[1758148174665,0.06,244.2,244.19,6.56778104]
[1758148175047,0.06,244.2,244.19,6.41778104]
[1758148175670,0.06,244.2,244.19,10.51295283]
[1758148175869,0.06,244.2,244.17,4.09543344]
[1758148176071,0.06,244.2,244.19,4.42784314]
[1758148179956,0.06,244.2,244.19,8.52301493]
[1758148180570,0.06,244.2,244.19,13.10085807]
[1758148180870,0.06,244.23,244.19,13.10085807]
[1758148180871,0.06,244.23,244.22,26.0]
[1758148181065,0.06,244.23,244.22,65.00784314]
[1758148181265,0.06,244.23,244.22,65.09784314]
[1758148181475,0.06,244.23,244.22,60.67]
[1758148181672,0.06,244.23,244.22,65.09784314]
[1758148181978,0.06,244.23,244.22,69.19251188]
[1758148184465,0.06,244.23,244.22,69.17251188]
[1758148184770,0.06,244.23,244.22,81.65071742]
[1758148185293,0.06,244.25,244.24,4.42784314]
[1758148185784,0.06,244.25,244.24,4.51784314]
[1758148187055,0.06,244.25,244.24,8.61217658]
[1758148187251,0.06,244.26,244.24,8.61217658]
[1758148187451,1e-08,244.29,244.26,26.0]
[1758148187674,1e-08,244.29,244.26,64.98784314]
[1758148187861,1e-08,244.29,244.27,13.68559401]
[1758148188074,1e-08,244.28,244.27,13.68559401]
[1758148188380,0.71,244.4,244.3,26.0]
[1758148188682,0.71,244.4,244.38,4.42784314]
[1758148189082,0.71,244.44,244.39,4.09182045]
[1758148189409,0.71,244.43,244.35,26.0]
[1758148189577,0.71,244.42,244.36,34.54]
[1758148189886,0.14216157,244.47,244.37,4.42784314]
[1758148189887,0.71,244.41,244.37,4.42784314]
[1758148190082,0.71,244.4,244.37,4.42784314]
[1758148190307,0.71,244.39,244.36,34.54]
[1758148190472,0.71,244.39,244.36,4.42784314]
[1758148190678,0.71,244.41,244.37,34.54]
[1758148190982,0.71,244.4,244.37,34.54]
[1758148191287,4.09128397,244.43,244.38,34.54]
[1758148191498,0.71,244.42,244.38,38.96784314]
[1758148191794,0.71,244.44,244.38,36.2377979]
[1758148191999,0.71,244.42,244.38,36.2377979]
[1758148192175,0.71,244.42,244.38,34.54]
[1758148192376,0.71,244.41,244.37,1.6977979]
[1758148192583,1.6977979,244.46,244.37,1.6977979]
[1758148192584,0.71,244.4,244.38,34.52]
[1758148193000,0.71,244.39,244.35,26.0]
[1758148193203,0.71,244.39,244.29,10.23364715]
[1758148193204,0.71,244.38,244.36,34.52]
[1758148193502,1.6977979,244.43,244.35,1.6977979]
[1758148193677,1.6977979,244.4,244.29,10.23364715]
[1758148193996,1.6977979,244.38,244.29,1.6977979]
[1758148194203,1.6977979,244.38,244.3,34.52]
[1758148194393,0.71,244.4,244.36,1.6977979]
[1758148194599,0.71,244.4,244.37,34.52]
[1758148195623,4.09118195,244.43,244.37,34.52]
[1758148195624,4.80118195,244.43,244.37,34.52]
[1758148196107,0.71,244.42,244.37,34.52]
[1758148196280,0.71,244.41,244.37,34.52]
[1758148196481,0.71,244.4,244.37,34.52]
[1758148196681,0.71,244.39,244.34,1.6977979]
[1758148196878,0.71,244.38,244.35,34.5]
[1758148197099,0.71,244.37,244.31,4.09300358]
[1758148197294,0.71,244.37,244.32,34.5]
[1758148197491,0.71,244.36,244.32,33.97667201]
[1758148197704,0.71,244.36,244.32,32.93001603]
[1758148198205,0.66,244.39,244.32,32.93001603]
[1758148198409,0.66,244.38,244.32,32.93001603]
[1758148198591,0.66,244.37,244.33,34.5]
[1758148198792,4.09182045,244.39,244.28,26.0]
[1758148198793,2.3577979,244.36,244.32,34.5]
[1758148199105,1.6977979,244.34,244.26,34.5]
[1758148199409,1.6977979,244.32,244.26,34.5]
[1758148199616,0.66,244.31,244.26,34.5]
[1758148199791,0.66,244.3,244.26,34.5]
[1758148199992,0.66,244.29,244.26,34.5]
[1758148200192,0.66,244.28,244.26,34.5]
[1758148200495,4.09299279,244.32,244.25,38.92706186]
[1758148200802,0.66,244.31,244.23,4.42706186]
[1758148201008,0.66,244.3,244.24,34.5]
[1758148201212,0.66,244.29,244.17,4.09550722]
[1758148201409,4.42706186,244.26,244.18,34.5]
[1758148201610,0.66,244.28,244.2,4.42706186]
[1758148201811,0.66,244.28,244.22,4.42706186]
[1758148202306,0.66,244.31,244.24,4.42706186]
[1758148202508,4.77332787,244.3,244.23,4.42706186]
[1758148202701,0.68,244.3,244.23,38.59438021]
[1758148203008,0.28432314,244.36,244.25,4.42706186]
[1758148203009,5.10706186,244.33,244.25,4.42706186]
[1758148203184,0.68,244.33,244.23,38.59438021]
[1758148203383,0.68,244.33,244.23,4.09438021]
[1758148203588,0.68,244.35,244.28,4.42706186]
[1758148203807,0.06,244.31,244.28,4.42706186]
[1758148205116,0.06,244.31,244.28,8.52070208]
[1758148205719,0.06,244.31,244.28,4.09364022]
[1758148205920,0.06,244.31,244.3,4.42706186]
[1758148206598,0.06,244.31,244.3,38.90706186]
[1758148208290,0.06,244.31,244.26,4.09399819]
[1758148208502,0.06,244.31,244.29,4.42706186]
[1758148209192,0.06,244.31,244.29,4.51706186]
[1758148209393,0.06,244.31,244.27,34.48]
[1758148209614,0.06,244.31,244.26,30.09399819]
[1758148209916,0.74,244.31,244.27,38.90706186]
[1758148210123,0.74,244.31,244.27,4.42706186]
[1758148210290,0.06,244.31,244.28,34.46]
[1758148210490,0.06,244.31,244.28,38.55365055]
[1758148211193,0.74,244.31,244.29,34.46]
[1758148211402,0.06,244.31,244.29,34.46]
[1758148211993,0.06,244.31,244.29,38.88706186]
[1758148212314,0.06,244.31,244.3,4.42706186]
[1758148212713,0.06,244.31,244.3,8.52038973]
[1758148212914,0.74,244.31,244.28,4.42706186]
[1758148213088,0.06,244.31,244.29,34.46]
[1758148213418,0.06,244.31,244.3,34.46]
[1758148213988,0.74,244.31,244.3,34.46]
[1758148214206,0.06,244.31,244.3,34.46]
[1758148214714,0.74,244.31,244.25,26.0]
[1758148215019,0.68,244.3,244.26,34.46]
[1758148215191,0.68,244.29,244.25,34.46]
[1758148215392,0.68,244.28,244.25,34.46]
[1758148216010,0.06,244.31,244.25,34.55]
[1758148216212,0.06,244.31,244.28,4.42706186]
[1758148216414,0.06,244.31,244.29,34.44]
[1758148216893,0.68,244.3,244.24,10.2658336]
[1758148217092,0.68,244.29,244.24,0.03]
[1758148217314,0.68,244.28,244.24,34.47]
[1758148217511,0.06,244.31,244.24,42.99135488]
[1758148217714,0.74,244.31,244.25,4.42706186]
[1758148218519,4.42706186,244.29,244.24,0.03]
[1758148218817,4.093663,244.28,244.24,0.03]
[1758148219019,4.773663,244.28,244.24,0.03]